bitfinex-derivatives/quotes_BTCF0:USTF0_20250213
["timestamp","ask_amount","ask_price","bid_price","bid_amount"]
[1739479220828,0.3278204,96223.0,96222.0,0.00015591]
[1739479221429,0.3278204,96223.0,96222.0,0.20797851]
[1739479221820,0.3288204,96223.0,96222.0,0.20897851]
[1739479222628,0.3308204,96223.0,96222.0,0.20897851]
[1739479228131,0.3308204,96223.0,96222.0,0.00115591]
[1739479230526,0.123,96223.0,96222.0,0.56977851]
[1739479231529,0.06323323,96223.0,96222.0,0.56977851]
[1739479231734,0.15379796,96232.0,96231.0,0.2078032]
[1739479232032,0.15379796,96232.0,96231.0,0.5686032]
[1739479232422,0.1898511,96241.0,96240.0,0.2077837]
[1739479232630,0.1898511,96241.0,96240.0,0.5685837]
[1739479233037,0.1534011,96241.0,96240.0,0.5685837]
[1739479234235,0.1534011,96241.0,96240.0,1.3372637]
[1739479234432,0.0792611,96241.0,96240.0,1.3382637]
[1739479234833,0.0792611,96241.0,96240.0,1.3392637]
[1739479235830,0.0395011,96241.0,96240.0,1.3382637]
[1739479236029,0.0395011,96241.0,96240.0,1.3392637]
[1739479236239,0.28102073,96266.0,96241.0,0.0519454]
[1739479236430,0.40102073,96266.0,96265.0,0.5685298]
[1739479236840,0.12155869,96266.0,96265.0,0.5685298]
[1739479238134,0.12155869,96266.0,96265.0,0.58029676]
[1739479239027,0.00255869,96266.0,96265.0,0.58129676]
[1739479243127,0.001,96266.0,96265.0,0.58129676]
[1739479243530,0.121,96266.0,96265.0,0.58129676]
[1739479243737,0.001,96266.0,96265.0,0.58129676]
[1739479244341,0.041,96266.0,96265.0,0.37356696]
[1739479244541,0.2487276,96266.0,96265.0,0.002]
[1739479244737,0.2487276,96266.0,96256.0,0.00083582]
[1739479244738,0.2572,96266.0,96256.0,0.00015582]
[1739479245044,0.207747,96257.0,96256.0,0.00015582]
[1739479245239,0.337747,96257.0,96256.0,0.00015582]
[1739479245937,0.34822911,96257.0,96255.0,0.3608]
[1739479246239,0.14048211,96257.0,96240.0,0.12430755]
[1739479246439,0.2077696,96247.0,96243.0,0.2077764]
[1739479246645,0.0914,96246.0,96244.0,0.2077745]
[1739479246969,0.11,96246.0,96245.0,0.3608]
[1739479247135,0.11,96246.0,96245.0,0.42944]
[1739479248946,0.11,96246.0,96245.0,0.43244]
[1739479248947,0.112,96246.0,96245.0,0.43244]
[1739479249546,0.11,96246.0,96245.0,0.43444]
[1739479250346,0.11,96246.0,96245.0,0.43544]
[1739479251832,0.11,96246.0,96245.0,0.43144]
[1739479252032,0.11,96246.0,96245.0,0.43344]
[1739479252347,0.11,96246.0,96245.0,0.6412129]
[1739479252539,0.11,96246.0,96245.0,0.3628]
[1739479252846,0.3177707,96246.0,96245.0,0.3628]
[1739479253043,0.3177707,96246.0,96245.0,0.3658]
[1739479253243,0.11,96246.0,96245.0,0.3658]
[1739479253449,0.11,96246.0,96245.0,0.5685729]
[1739479255450,0.3187708,96246.0,96245.0,0.5685729]
[1739479255652,0.3197708,96246.0,96245.0,0.5685729]
[1739479256347,0.3197708,96246.0,96245.0,0.3608]
[1739479256546,0.2077751,96244.0,96243.0,0.01048853]
[1739479256746,0.207788,96239.0,96238.0,0.2077877]
[1739479256947,0.337788,96239.0,96238.0,0.2077877]
[1739479257852,0.337788,96239.0,96238.0,0.21872646]
[1739479258148,0.13,96239.0,96238.0,0.21872646]
[1739479258746,0.13,96239.0,96238.0,0.21972646]
[1739479259350,0.13,96239.0,96238.0,0.22072646]
[1739479260343,0.3377859,96239.0,96238.0,0.22072646]
[1739479263164,0.13,96239.0,96238.0,0.22072646]
[1739479263658,0.00015582,96255.0,96254.0,0.2077534]
[1739479263853,0.30790712,96255.0,96254.0,0.2077534]
[1739479264950,0.30890712,96255.0,96254.0,0.2077534]
[1739479265450,0.31090712,96255.0,96254.0,0.2077534]
[1739479266562,0.13285593,96255.0,96254.0,0.2077534]
[1739479266756,0.103,96255.0,96254.0,0.2077534]
[1739479267659,0.103,96255.0,96238.0,0.05715986]
[1739479267867,0.2077834,96241.0,96240.0,0.2764144]
[1739479268069,0.3277834,96241.0,96240.0,0.2077744]
[1739479268960,0.12,96241.0,96240.0,0.2077744]
[1739479269259,0.12,96241.0,96240.0,0.2097744]
[1739479269861,0.12,96241.0,96240.0,0.2087744]
[1739479270060,0.12,96241.0,96240.0,0.2097744]
[1739479272659,0.3608,96272.0,96245.0,0.0519429]
[1739479272860,0.2077351,96263.0,96254.0,0.12430755]
[1739479273057,0.3177351,96263.0,96254.0,0.12430755]
[1739479273364,0.3177351,96263.0,96262.0,0.2077362]
[1739479274163,0.11,96263.0,96262.0,0.2077362]
[1739479275056,0.11,96263.0,96262.0,0.2528362]
[1739479275357,0.111,96263.0,96262.0,0.2528362]
[1739479276262,0.113,96263.0,96262.0,0.2528362]
[1739479276467,0.113,96263.0,96262.0,0.26357413]
[1739479276661,0.11304406,96263.0,96262.0,0.26357413]
[1739479281265,0.11304406,96263.0,96262.0,0.01073793]
[1739479281473,0.11304406,96263.0,96254.0,0.2077515]
[1739479281768,0.11304406,96263.0,96254.0,0.21837552]
[1739479281965,0.2077485,96257.0,96254.0,0.21837552]
[1739479282164,0.3177485,96257.0,96254.0,0.21837552]
[1739479282662,0.2077513,96255.0,96254.0,0.01062402]
[1739479282864,0.2077513,96255.0,96253.0,0.3608]
[1739479282865,0.2077535,96254.0,96253.0,0.3608]
[1739479283067,0.3377535,96254.0,96253.0,0.3608]
[1739479283462,0.3377535,96254.0,96253.0,0.37137185]
[1739479283870,0.13,96254.0,96253.0,0.57912745]
[1739479284671,0.13,96254.0,96253.0,0.58112745]
[1739479285468,0.20633057,96254.0,96253.0,0.58112745]
[1739479285872,0.20633057,96254.0,96253.0,0.58312745]
[1739479287066,0.20633057,96254.0,96253.0,0.37537185]
[1739479287067,0.41408407,96254.0,96253.0,0.37537185]
[1739479287268,0.41408407,96254.0,96253.0,0.3648]
[1739479288170,0.41408407,96254.0,96253.0,0.37564737]
[1739479288374,0.41408407,96254.0,96253.0,0.58140297]
[1739479288375,0.41608407,96254.0,96253.0,0.58140297]
[1739479288770,0.41708407,96254.0,96253.0,0.57940297]
[1739479289868,0.41608407,96254.0,96253.0,0.57940297]
[1739479290076,0.41708407,96254.0,96253.0,0.57940297]
[1739479291878,0.3407535,96254.0,96253.0,0.57940297]
[1739479293675,0.3387535,96254.0,96253.0,0.58140297]
[1739479294184,0.3387535,96254.0,96253.0,0.5705556]
[1739479294481,0.3407535,96254.0,96253.0,0.5685556]
[1739479294972,0.3407535,96254.0,96253.0,0.57946]
[1739479297388,0.133,96254.0,96253.0,0.57946]
[1739479297978,0.131,96254.0,96253.0,0.57946]
[1739479298178,0.3407535,96254.0,96253.0,0.57946]
[1739479298686,0.41708523,96254.0,96253.0,0.3608]
[1739479298898,0.41508523,96254.0,96253.0,0.3618]
[1739479299082,0.41408523,96254.0,96253.0,0.001]
[1739479300490,0.2077686,96247.0,96246.0,0.2077691]
[1739479300686,0.3277686,96247.0,96246.0,0.2077691]
[1739479301279,0.12,96247.0,96240.0,0.12430755]
[1739479301586,0.12,96247.0,96235.0,0.45483582]
[1739479301587,0.2077923,96237.0,96236.0,0.2077917]
[1739479301790,0.3277923,96237.0,96236.0,0.2077917]
[1739479302082,0.6885923,96237.0,96235.0,0.00015582]
[1739479302486,0.3277923,96237.0,96235.0,0.00015582]
[1739479302881,0.3277923,96237.0,96236.0,0.002]
[1739479303090,0.12,96237.0,96236.0,0.002]
[1739479303286,0.12,96237.0,96236.0,0.0706]
[1739479303593,0.12,96237.0,96236.0,0.0686]
[1739479304098,0.12,96237.0,96236.0,0.0706]
[1739479305186,0.12,96237.0,96236.0,0.0726]
[1739479307079,0.12,96237.0,96236.0,0.2803923]
[1739479307281,0.12,96237.0,96236.0,0.2117923]
[1739479307493,0.3277902,96237.0,96236.0,0.004]
[1739479307695,0.40413668,96237.0,96236.0,0.004]
[1739479314297,0.19634648,96237.0,96236.0,0.2117923]
[1739479314496,0.19634648,96237.0,96236.0,0.5725923]
[1739479314897,0.12,96237.0,96236.0,0.5725923]
[1739479315893,0.12,96237.0,96236.0,0.2117923]
[1739479317396,0.3277902,96237.0,96236.0,0.2117923]
[1739479318807,0.3277902,96237.0,96236.0,0.004]
[1739479320198,0.3277902,96237.0,96236.0,0.2117923]
[1739479320698,0.2077902,96237.0,96236.0,0.2117923]
[1739479321002,0.3377902,96237.0,96236.0,0.2117923]
[1739479321900,0.41413866,96237.0,96236.0,0.2117923]
[1739479325305,0.66315962,96237.0,96236.0,0.2117923]
[1739479325805,0.66315962,96237.0,96236.0,0.004]
[1739479326002,0.66315962,96237.0,96236.0,0.0726]
[1739479328508,0.67400662,96237.0,96236.0,0.0726]
[1739479328702,0.67400662,96237.0,96236.0,0.004]
[1739479329201,0.66315962,96237.0,96236.0,0.004]
[1739479329608,0.66315962,96237.0,96236.0,0.2117923]
[1739479330502,0.45536942,96237.0,96236.0,0.2117923]
[1739479330715,0.45536942,96237.0,96236.0,0.2596923]
[1739479331906,0.66315962,96237.0,96236.0,0.2596923]
[1739479332700,0.45536942,96237.0,96236.0,0.2596923]
[1739479332900,0.20634846,96237.0,96236.0,0.2596923]
[1739479334304,0.41413866,96237.0,96236.0,0.0519]
[1739479335597,0.41413866,96237.0,96236.0,0.004]
[1739479337607,0.20634846,96237.0,96236.0,0.5725923]
[1739479337809,0.20634846,96237.0,96236.0,0.7207923]
[1739479338710,0.12974846,96237.0,96236.0,0.7207923]
[1739479338916,0.24902096,96242.0,96241.0,0.2077816]
[1739479339215,0.27902096,96242.0,96241.0,0.5685816]
[1739479339419,0.20242096,96242.0,96241.0,0.5685816]
[1739479341216,0.03,96242.0,96241.0,0.5685816]
[1739479341814,0.03,96242.0,96241.0,0.5745816]
[1739479342512,0.17833142,96243.0,96242.0,0.2077794]
[1739479344416,0.17833142,96243.0,96241.0,0.3708]
[1739479344417,0.01,96258.0,96257.0,0.207747]
[1739479344715,0.13,96258.0,96257.0,0.568547]
[1739479347312,0.13,96258.0,96257.0,0.57903679]
[1739479350421,0.3377448,96258.0,96257.0,0.37128979]
[1739479350616,0.3377448,96258.0,96257.0,0.37328979]
[1739479351225,0.33778708,96258.0,96257.0,0.37328979]
[1739479352016,0.49084228,96258.0,96235.0,0.00015582]
[1739479352220,0.2077858,96242.0,96241.0,0.2077723]
[1739479352415,0.3277858,96242.0,96241.0,0.2077723]
[1739479353123,0.3277858,96242.0,96241.0,0.21841754]
[1739479353429,0.3277858,96242.0,96241.0,0.22141754]
[1739479353926,0.3277858,96242.0,96241.0,0.22441754]
[1739479355528,0.3277858,96242.0,96241.0,0.21841754]
[1739479355729,0.3277858,96242.0,96241.0,0.22441754]
[1739479356119,0.3277858,96242.0,96241.0,0.22141754]
[1739479356618,0.3277858,96242.0,96241.0,0.21841754]
[1739479357120,0.3277858,96242.0,96241.0,0.01064524]
[1739479357321,0.12,96242.0,96235.0,0.00015582]
[1739479357528,0.2077923,96236.0,96235.0,0.00015582]
[1739479357820,0.3177923,96236.0,96235.0,0.00015582]
[1739479358416,0.3177923,96236.0,96235.0,0.20795032]
[1739479358620,0.3177923,96236.0,96235.0,0.20995032]
[1739479358831,0.3177923,96236.0,96235.0,0.21195032]
[1739479360027,0.3177923,96236.0,96235.0,0.22230737]
[1739479360428,0.3177923,96236.0,96235.0,0.58310737]
[1739479362543,0.3177923,96236.0,96235.0,0.37531287]
[1739479363256,0.3177923,96236.0,96235.0,0.58310737]
[1739479364849,0.3177923,96236.0,96235.0,0.58310737]
[1739479365547,0.3177923,96236.0,96235.0,0.37531287]
[1739479365754,0.6785923,96236.0,96235.0,0.00415582]
[1739479367551,0.7770923,96236.0,96235.0,0.00415582]
[1739479367754,0.2078334,96217.0,96203.0,0.3608]
[1739479367956,0.3178334,96217.0,96216.0,0.20939426]
[1739479368556,0.3178334,96217.0,96216.0,0.00155876]
[1739479368746,0.3178334,96217.0,96216.0,0.0122001]
[1739479368948,0.3178334,96217.0,96216.0,0.21039426]
[1739479369954,0.11,96217.0,96216.0,0.58263106]
[1739479370151,0.0498,96235.0,96216.0,0.37479556]
[1739479370355,0.1698,96235.0,96234.0,0.5685967]
[1739479371053,0.12,96235.0,96234.0,0.5685967]
[1739479372162,0.125,96235.0,96234.0,0.5685967]
[1739479372354,0.131,96235.0,96234.0,0.5695967]
[1739479372556,0.126,96235.0,96234.0,0.5715967]
[1739479373055,0.12,96235.0,96234.0,0.5705967]
[1739479373252,0.12,96235.0,96234.0,0.5725967]
[1739479375862,0.12,96235.0,96234.0,0.5735967]
[1739479378156,0.12,96235.0,96234.0,0.5715967]
[1739479378353,0.12,96235.0,96234.0,0.5725967]
[1739479378757,0.12,96235.0,96234.0,0.5705967]
[1739479390069,0.3277945,96235.0,96234.0,0.3628]
[1739479390966,0.23920488,96235.0,96234.0,0.3628]
[1739479391175,0.23920488,96235.0,96234.0,0.5705966]
[1739479391176,0.11,96235.0,96234.0,0.5705966]
[1739479392267,0.3177945,96235.0,96234.0,0.002]
[1739479393679,0.3177945,96235.0,96234.0,0.2097967]
[1739479395083,0.3177945,96235.0,96234.0,0.002]
[1739479395675,0.3177945,96235.0,96234.0,0.209796]
[1739479395882,0.11,96235.0,96234.0,0.209796]
[1739479397277,0.11,96235.0,96234.0,0.570596]
[1739479405175,0.0985,96248.0,96237.0,0.0519473]
[1739479405386,0.12,96248.0,96247.0,0.5685686]
[1739479408483,4.228e-05,96258.0,96257.0,0.207747]
[1739479408685,0.10004228,96258.0,96257.0,0.568547]
[1739479410590,0.10004228,96258.0,96257.0,0.57907821]
[1739479411386,0.10704228,96258.0,96257.0,0.58007821]
[1739479412790,0.31478708,96258.0,96257.0,0.58007821]
[1739479413894,0.31478708,96258.0,96257.0,0.37233121]
[1739479414389,0.10704228,96258.0,96257.0,0.58007821]
[1739479416494,0.107,96258.0,96257.0,0.58007821]
[1739479416690,0.107,96258.0,96257.0,0.37233121]
[1739479416891,0.3147448,96258.0,96257.0,0.58007821]
[1739479417091,0.107,96258.0,96257.0,0.58007821]
[1739479418494,0.10704228,96258.0,96257.0,0.58007821]
[1739479426402,0.31478718,96258.0,96257.0,0.58007821]
[1739479427403,0.31278718,96258.0,96257.0,0.58507821]
[1739479427694,0.31278718,96258.0,96257.0,0.37733121]
[1739479428101,0.31378718,96258.0,96257.0,0.37133121]
[1739479428703,0.30878718,96258.0,96257.0,0.58407821]
[1739479429405,0.31078718,96258.0,96257.0,0.57907821]
[1739479429904,0.30778718,96258.0,96257.0,0.57907821]
[1739479430201,0.30778718,96258.0,96257.0,0.22127821]
[1739479430596,0.30978718,96258.0,96257.0,0.22127821]
[1739479430797,0.38611681,96258.0,96257.0,0.22127821]
[1739479431198,0.38611681,96258.0,96257.0,0.01353121]
[1739479431407,0.38611681,96258.0,96257.0,0.22127821]
[1739479431709,0.38811681,96258.0,96257.0,0.01053121]
[1739479432008,0.38811681,96258.0,96236.0,0.8210679]
[1739479432009,0.84117191,96258.0,96241.0,0.3608]
[1739479432192,0.3608,96249.0,96237.0,0.00155851]
[1739479432398,0.2077858,96239.0,96237.0,0.00155851]
[1739479432605,0.3177858,96239.0,96237.0,0.00155851]
[1739479433407,0.3177858,96239.0,96238.0,0.01054503]
[1739479433607,0.3177858,96239.0,96238.0,0.00015582]
[1739479433797,0.3177858,96239.0,96238.0,0.00415582]
[1739479434302,0.3177858,96239.0,96238.0,0.01491442]
[1739479434505,0.3177858,96239.0,96238.0,0.00415582]
[1739479435505,0.3177858,96239.0,96238.0,0.01455559]
[1739479435714,0.3177858,96239.0,96238.0,0.01055559]
[1739479435895,0.3177858,96239.0,96238.0,0.01455559]
[1739479436095,0.3177858,96239.0,96238.0,0.01855559]
[1739479436406,0.3177858,96239.0,96238.0,0.22534359]
[1739479437213,0.3177858,96239.0,96238.0,0.01755559]
[1739479440009,0.3177858,96239.0,96238.0,0.00715582]
[1739479440204,0.3177858,96239.0,96238.0,0.01785812]
[1739479440411,0.3177858,96239.0,96238.0,0.00715582]
[1739479440707,0.3177858,96239.0,96238.0,0.21494382]
[1739479443010,0.3177858,96239.0,96238.0,0.22558489]
[1739479446202,0.3177858,96239.0,96238.0,0.01779689]
[1739479449807,0.3177858,96239.0,96238.0,0.22558489]
[1739479451211,0.11,96239.0,96238.0,0.22558489]
[1739479451409,0.24906557,96254.0,96238.0,0.10749689]
[1739479451611,0.35854556,96254.0,96253.0,0.9293556]
[1739479452916,0.35954556,96254.0,96253.0,0.9293556]
[1739479454618,0.113,96254.0,96253.0,0.9293556]
[1739479455414,0.10684418,96254.0,96253.0,0.9323556]
[1739479456211,0.10584418,96254.0,96253.0,0.9343556]
[1739479457015,0.10584418,96254.0,96253.0,0.005]
[1739479457016,0.31359768,96254.0,96253.0,0.005]
[1739479457318,0.31359768,96254.0,96253.0,0.5735556]
[1739479457319,0.10584418,96254.0,96253.0,0.5735556]
[1739479458418,0.10584418,96254.0,96253.0,0.5715556]
[1739479459119,0.10584418,96254.0,96253.0,0.5705556]
[1739479459315,0.10584418,96254.0,96253.0,0.5715556]
[1739479459820,0.10584418,96254.0,96253.0,0.5695556]
[1739479460125,0.31359768,96254.0,96253.0,0.3618]
[1739479460615,0.31359768,96254.0,96253.0,0.001]
[1739479461514,0.2077599,96252.0,96249.0,0.2077642]
[1739479461716,0.3277599,96252.0,96250.0,0.2077617]
[1739479461926,0.12,96252.0,96250.0,0.2077617]
[1739479462221,0.20776,96251.0,96250.0,0.2077617]
[1739479462521,0.32776,96251.0,96250.0,0.2077617]
[1739479463012,0.32776,96251.0,96250.0,0.2107617]
[1739479463416,0.32776,96251.0,96250.0,0.2077617]
[1739479463717,0.32776,96251.0,96250.0,0.2087617]
[1739479464622,0.32776,96251.0,96250.0,0.2097617]
[1739479466819,0.12,96251.0,96250.0,0.2097617]
[1739479476323,0.32776,96251.0,96250.0,0.2097617]
[1739479476516,0.32776,96251.0,96250.0,0.002]
[1739479476713,0.32776,96251.0,96250.0,0.07044]
[1739479479718,0.32776,96251.0,96250.0,0.002]
[1739479479925,0.32776,96251.0,96250.0,0.07044]
[1739479480223,0.32776,96251.0,96250.0,0.2782021]
[1739479480424,0.32776,96251.0,96250.0,0.2097621]
[1739479481126,0.12,96251.0,96250.0,0.2097621]
[1739479481726,0.3277599,96251.0,96250.0,0.2097621]
[1739479482718,0.12,96251.0,96250.0,0.2097621]
[1739479489330,0.32776,96251.0,96250.0,0.2097621]
[1739479489530,0.32776,96251.0,96250.0,0.002]
[1739479489722,0.32776,96251.0,96250.0,0.07044]
[1739479490822,0.32776,96251.0,96250.0,0.002]
[1739479491130,0.32776,96251.0,96250.0,0.07044]
[1739479492025,0.32776,96251.0,96250.0,0.002]
[1739479492223,0.17056567,96251.0,96250.0,0.07044]
[1739479492423,0.17056567,96251.0,96250.0,0.002]
[1739479494233,0.24690602,96251.0,96250.0,0.002]
[1739479497224,0.17056567,96251.0,96250.0,0.002]
[1739479500729,0.21216567,96251.0,96250.0,0.002]
[1739479501733,0.21216567,96251.0,96250.0,0.2097621]
[1739479502032,0.02,96251.0,96250.0,0.5705621]
[1739479502229,0.02,96251.0,96250.0,0.58099907]
[1739479504536,1.4,96260.0,96250.0,0.37323697]
[1739479504840,1.47,96260.0,96259.0,0.5685427]
[1739479505640,1.4,96260.0,96259.0,0.5685427]
[1739479506341,1.402,96260.0,96259.0,0.5685427]
[1739479506532,1.404,96260.0,96259.0,0.5685427]
[1739479507529,0.604,96260.0,96259.0,0.5685427]
[1739479510334,0.704,96260.0,96254.0,0.3608]
[1739479510642,0.3608,96255.0,96251.0,0.0684]
[1739479510839,0.2077859,96239.0,96238.0,0.01058525]
[1739479511039,0.3177859,96239.0,96238.0,0.00015582]
[1739479512444,0.3177859,96239.0,96225.0,0.3608]
[1739479512744,0.2078269,96220.0,96216.0,0.3608]
[1739479512934,0.3178269,96220.0,96216.0,0.3608]
[1739479513544,0.3178269,96220.0,96218.0,0.01045607]
[1739479513837,0.3178269,96220.0,96217.0,0.2078321]
[1739479514237,0.11,96220.0,96216.0,0.3608]
[1739479514437,0.2078312,96218.0,96217.0,0.0684]
[1739479514637,0.3278312,96218.0,96216.0,0.3608]
[1739479515238,0.3278312,96218.0,96217.0,0.007]
[1739479515840,0.3288312,96218.0,96216.0,0.3678]
[1739479516045,0.3288312,96218.0,96216.0,0.014]
[1739479516235,0.121,96218.0,96216.0,0.014]
[1739479516434,0.121,96218.0,96216.0,0.2902756]
[1739479516637,0.121,96218.0,96216.0,0.007]
[1739479516840,0.328833,96218.0,96217.0,0.007]
[1739479517441,0.328833,96218.0,96217.0,0.014]
[1739479518048,0.328833,96218.0,96217.0,0.013]
[1739479518254,0.328833,96218.0,96217.0,0.006]
[1739479519040,0.328833,96218.0,96217.0,0.013]
[1739479522345,0.38907311,96218.0,96217.0,0.013]
[1739479525944,0.18124011,96218.0,96217.0,0.2208334]
[1739479526351,0.18124011,96218.0,96217.0,0.2138334]
[1739479526949,0.121,96218.0,96217.0,0.2138334]
[1739479528151,0.121,96218.0,96217.0,0.2208334]
[1739479528356,0.121,96218.0,96217.0,0.2148334]
[1739479529153,0.12,96218.0,96217.0,0.2148334]
[1739479529469,0.121,96218.0,96217.0,0.2208334]
[1739479529959,0.121,96218.0,96217.0,0.5816334]
[1739479530657,0.001,96218.0,96217.0,0.5816334]
[1739479530853,0.14949023,96222.0,96221.0,0.2078247]
[1739479531052,9e-08,96222.0,96221.0,0.2078247]
[1739479531555,0.00015582,96229.0,96228.0,0.2078096]
[1739479531756,0.00015582,96229.0,96228.0,0.5686096]
[1739479533157,0.00155944,96238.0,96237.0,0.2077902]
[1739479533359,0.00155944,96238.0,96237.0,0.5685902]
[1739479535057,9e-08,96242.0,96241.0,0.2077815]
[1739479535258,9e-08,96242.0,96241.0,0.5685815]
[1739479535662,0.2162,96285.0,96258.0,0.2077448]
[1739479535959,0.31283306,96260.0,96259.0,0.7216]
[1739479536158,0.31283306,96260.0,96259.0,0.73227004]
[1739479536852,0.31483306,96260.0,96259.0,0.73227004]
[1739479538462,0.31283306,96260.0,96259.0,0.73227004]
[1739479538666,0.31683306,96260.0,96259.0,0.73227004]
[1739479541755,0.31683306,96260.0,96259.0,0.94001274]
[1739479549174,0.0863,96284.0,96259.0,0.73227004]
[1739479549375,0.1963,96284.0,96283.0,0.5684909]
[1739479550168,0.1963,96284.0,96275.0,0.3608]
[1739479550378,0.207706,96276.0,96275.0,0.3608]
[1739479550573,0.337706,96276.0,96275.0,0.2921]
[1739479550773,0.13,96276.0,96262.0,0.36251404]
[1739479550981,0.2077228,96269.0,96262.0,0.36251404]
[1739479551275,0.3077228,96269.0,96268.0,0.2077233]
[1739479552476,0.3107228,96269.0,96268.0,0.2077233]
[1739479554373,0.207728,96266.0,96263.0,0.2077334]
[1739479554570,0.2077301,96265.0,96263.0,0.2077334]
[1739479554770,0.2577301,96265.0,96263.0,0.2077334]
[1739479555178,0.05,96265.0,96263.0,0.2077334]
[1739479555878,0.0427,96264.0,96263.0,0.2077334]
[1739479556082,0.0427,96264.0,96263.0,0.5685334]
[1739479558273,0.0437,96264.0,96263.0,0.5685334]
[1739479558877,0.0637,96264.0,96263.0,0.5685334]
[1739479559084,0.0637,96264.0,96263.0,0.3608]
[1739479559278,0.0647,96264.0,96263.0,0.3608]
[1739479559979,0.0647,96264.0,96263.0,0.568534]
[1739479560381,0.2724319,96264.0,96263.0,0.568534]
[1739479560984,0.0647,96264.0,96263.0,0.568534]
[1739479564177,0.2724319,96264.0,96263.0,0.568534]
[1739479565486,0.0647,96264.0,96263.0,0.568534]
[1739479565687,0.21749252,96269.0,96263.0,0.3608]
[1739479565893,0.24854556,96277.0,96276.0,0.207706]
[1739479566189,0.24854556,96277.0,96276.0,0.568506]
[1739479568295,0.24854556,96277.0,96276.0,0.569506]
[1739479569489,0.0436,96292.0,96276.0,0.3618]
[1739479569687,0.1536,96292.0,96291.0,0.2076737]
[1739479569893,0.1536,96292.0,96287.0,0.3608]
[1739479570186,0.2076761,96290.0,96288.0,0.06844]
[1739479570383,0.3376761,96290.0,96288.0,0.2076787]
[1739479570784,0.3376761,96290.0,96289.0,0.207678]
[1739479571085,0.13,96290.0,96289.0,0.207678]
[1739479571285,0.13,96290.0,96287.0,0.3608]
[1739479571482,0.2076787,96289.0,96288.0,0.2761194]
[1739479571687,0.3276787,96289.0,96288.0,0.2076794]
[1739479572491,0.3276787,96289.0,96288.0,0.21824635]
[1739479572990,0.12,96289.0,96288.0,0.21824635]
[1739479573193,0.123,96289.0,96288.0,0.21824635]
[1739479573690,0.003,96289.0,96288.0,0.26164635]
[1739479574995,5.365e-05,96290.0,96288.0,0.05396695]
[1739479575194,0.001,96289.0,96288.0,0.26164705]
[1739479575591,5.365e-05,96290.0,96289.0,0.207678]
[1739479576200,0.00105365,96290.0,96289.0,0.207678]
[1739479578197,0.00205365,96290.0,96289.0,0.207678]
[1739479579201,0.207678,96289.0,96288.0,0.01056695]
[1739479579396,0.00205365,96290.0,96287.0,0.3608]
[1739479579695,0.00105365,96290.0,96289.0,0.209678]
[1739479579899,0.02105365,96290.0,96289.0,0.209678]
[1739479580289,0.02005365,96290.0,96289.0,0.209678]
[1739479580491,0.02005365,96290.0,96289.0,0.214678]
[1739479580799,5.365e-05,96290.0,96289.0,0.214678]
[1739479581186,5.365e-05,96290.0,96289.0,0.207678]
[1739479581594,0.1,96300.0,96288.0,0.01048343]
[1739479581793,0.1,96300.0,96299.0,0.5684564]
[1739479583201,0.103,96300.0,96299.0,0.5684564]
[1739479584497,0.1,96300.0,96299.0,0.5684564]
[1739479584996,0.1,96300.0,96299.0,0.5694564]
[1739479585194,0.043,96319.0,96312.0,0.2076284]
[1739479585394,0.31854556,96313.0,96312.0,0.5684284]
[1739479587110,0.07,96313.0,96312.0,0.5684284]
[1739479587496,0.071,96313.0,96312.0,0.5684284]
[1739479587997,0.3608,96354.0,96339.0,0.2075702]
[1739479588192,0.11,96340.0,96339.0,0.5683702]
[1739479588391,0.22766609,96342.0,96341.0,0.2075659]
[1739479588612,0.29766609,96342.0,96341.0,0.21799448]
[1739479589411,0.30466609,96342.0,96341.0,0.21899448]
[1739479590402,0.29414846,96342.0,96341.0,0.21899448]
[1739479590800,0.077,96342.0,96341.0,0.21899448]
[1739479590997,0.07,96342.0,96341.0,0.21799448]
[1739479591303,0.074,96342.0,96341.0,0.21999448]
[1739479591501,0.004,96342.0,96341.0,0.21999448]
[1739479591803,0.0424,96351.0,96350.0,0.2075465]
[1739479592004,0.0924,96351.0,96350.0,0.5683465]
[1739479592601,0.0924,96351.0,96350.0,0.3608]
[1739479592809,0.2999443,96351.0,96350.0,0.42968]
[1739479593011,0.0924,96351.0,96350.0,0.5683465]
[1739479593200,0.0874,96365.0,96364.0,0.2075163]
[1739479593508,0.2412,96365.0,96364.0,0.5683163]
[1739479593802,0.1312,96365.0,96364.0,0.5683163]
[1739479594401,0.1312,96365.0,96364.0,0.5693163]
[1739479595308,0.1712,96365.0,96364.0,0.3618]
[1739479595605,0.29503084,96365.0,96364.0,0.07008]
[1739479595798,0.29503084,96365.0,96364.0,0.001]
[1739479596198,0.3175142,96365.0,96364.0,0.002]
[1739479598607,0.4038142,96365.0,96364.0,0.002]
[1739479598901,0.4448142,96365.0,96364.0,0.002]
[1739479599620,0.2373,96365.0,96364.0,0.002]
[1739479599913,0.11,96365.0,96364.0,0.5703163]
[1739479601515,0.3175141,96365.0,96364.0,0.5703163]
[1739479603118,0.3175141,96365.0,96364.0,0.3628]
[1739479603310,0.3175141,96365.0,96364.0,0.002]
[1739479605918,0.11,96365.0,96364.0,0.5703163]
[1739479606710,0.4708,96365.0,96355.0,0.00015573]
[1739479607013,0.2075255,96361.0,96360.0,0.2075223]
[1739479607318,0.6783255,96361.0,96360.0,0.2075223]
[1739479607715,0.2075336,96356.0,96355.0,0.20768993]
[1739479607914,0.13,96356.0,96355.0,0.20768993]
[1739479608912,0.13,96356.0,96355.0,0.20868993]
[1739479608913,0.131,96356.0,96355.0,0.20868993]
[1739479609617,0.132,96356.0,96355.0,0.20868993]
[1739479610218,0.3395336,96356.0,96355.0,0.20868993]
[1739479611421,0.3395336,96356.0,96355.0,0.00115573]
[1739479612719,0.3395336,96356.0,96355.0,0.20869143]
[1739479615119,0.39967984,96356.0,96355.0,0.20869143]
[1739479616625,0.19214624,96356.0,96355.0,0.20869143]
[1739479617512,0.39967984,96356.0,96355.0,0.20869143]
[1739479621918,0.39967984,96356.0,96355.0,0.00115573]
[1739479622727,0.3395336,96356.0,96355.0,0.20869143]
[1739479624121,0.132,96356.0,96355.0,0.20869143]
[1739479626227,0.21714846,96370.0,96355.0,0.00115573]
[1739479626425,0.25714846,96370.0,96369.0,0.5683056]
[1739479626726,0.04400847,96370.0,96369.0,0.5683056]
[1739479627622,0.04500847,96370.0,96369.0,0.5693056]